lending/lending_fUSD_20241204
["ID","MTS","AMOUNT","RATE_DAILY","PERIOD"]
[344065793,1733270429917,320.47,6.573e-05,2]
[344065795,1733270445154,250.0,6.573e-05,2]
[344065796,1733270596805,818374.65,6.922e-05,5]
[344065797,1733270604093,93920.24297961,6.922e-05,5]
[344065798,1733270604120,196683.11702039,6.922e-05,5]
[344065799,1733270611437,12314.08,6.922e-05,5]
[344065800,1733270628221,62717.52,6.922e-05,5]
[344065801,1733270654636,34922.44,6.922e-05,5]
[344065802,1733270662199,11490.28,6.922e-05,5]
[344065803,1733270677150,27025.41,6.922e-05,5]
[344065804,1733270694314,25109.48,6.922e-05,5]
[344065805,1733270701690,58219.31,6.922e-05,5]
[344065808,1733270735751,150.0,6.904e-05,2]
[344065819,1733270909919,23900.0,6.561e-05,2]
[344065837,1733271031921,-337.72087661,7.222e-05,2]
[344065838,1733271031931,-150.0,7.295e-05,2]
[344065839,1733271031940,-400.0,7.3e-05,2]
[344065840,1733271031950,-320.47,7.395e-05,2]
[344065841,1733271031960,-900.0,7.4e-05,2]
[344065842,1733271031969,-150.0,7.426e-05,2]
[344065843,1733271031978,-355.59532848,7.426e-05,2]
[344065844,1733271031988,-150.0,7.435e-05,2]
[344065845,1733271031998,-150.0,7.436e-05,2]
[344065846,1733271032007,-150.0,7.436e-05,2]
[344065847,1733271032016,-1986.43478023,7.436e-05,2]
[344065848,1733271032078,-16.56521977,7.436e-05,2]
[344065849,1733271032088,-465.81477923,7.436e-05,2]
[344065850,1733271032102,-1427.18522077,7.436e-05,2]
[344065851,1733271032112,-563.0,7.436e-05,2]
[344065852,1733271032122,-816.0,7.436e-05,2]
[344065853,1733271032132,-680.56885023,7.436e-05,2]
[344065854,1733271032144,-2746.06217999,7.436e-05,2]
[344065855,1733271032156,-333.36896978,7.436e-05,2]
[344065856,1733271032166,-1252.0,7.436e-05,2]
[344065857,1733271032177,-535.0,7.436e-05,2]
[344065858,1733271032187,-3528.0,7.436e-05,2]
[344065859,1733271032197,-975.0,7.436e-05,2]
[344065860,1733271032206,-150.0,7.437e-05,2]
[344065861,1733271032217,-150.0,7.443e-05,2]
[344065862,1733271032227,-1500.0,7.448e-05,2]
[344065863,1733271032236,-150.0,7.464e-05,2]
[344065864,1733271032246,-1500.0,7.468e-05,2]
[344065865,1733271032257,-150.0,7.469e-05,2]
[344065866,1733271032267,-5428.84941888,7.469e-05,2]
[344065867,1733271032279,-533.15058112,7.469e-05,2]
[344065868,1733271032289,-870.32628133,7.469e-05,2]
[344065869,1733271032326,-4742.53711459,7.469e-05,2]
[344065870,1733271032355,-8096.13660408,7.469e-05,2]
[344065871,1733271032365,-1166.0,7.469e-05,2]
[344065872,1733271032375,-150.0,7.471e-05,2]
[344065873,1733271032384,-1500.0,7.472e-05,2]
[344065874,1733271032393,-150.0,7.477e-05,2]
[344065875,1733271032402,-150.0,7.481e-05,2]
[344065876,1733271032411,-150.0,7.485e-05,2]
[344065877,1733271032420,-355.59532847,7.488e-05,2]
[344065878,1733271032429,-150.0,7.492e-05,2]
[344065879,1733271032438,-150.0,7.494e-05,2]
[344065880,1733271032447,-150.0,7.499e-05,2]
[344065881,1733271032456,-1300.0,7.5e-05,2]
[344065882,1733271032466,-150.0,7.502e-05,2]
[344065883,1733271032475,-150.0,7.507e-05,2]
[344065884,1733271032484,-2117.9763,7.507e-05,2]
[344065885,1733271032493,-150.0,7.513e-05,2]
[344065886,1733271032502,-150.0,7.515e-05,2]
[344065887,1733271032511,-150.0,7.518e-05,2]
[344065888,1733271032520,-150.0,7.524e-05,2]
[344065889,1733271032530,-150.0,7.524e-05,2]
[344065890,1733271032539,-150.0,7.525e-05,2]
[344065891,1733271032548,-150.0,7.532e-05,2]
[344065892,1733271032558,-150.0,7.536e-05,2]
[344065893,1733271032568,-150.0,7.537e-05,2]
[344065894,1733271032577,-150.0,7.539e-05,2]
[344065895,1733271032586,-760.9321,7.544e-05,2]
[344065896,1733271032598,-150.0,7.546e-05,2]
[344065897,1733271032606,-1261.0,7.549e-05,2]
[344065898,1733271032615,-566.0,7.549e-05,2]
[344065899,1733271032626,-630.0,7.549e-05,2]
[344065900,1733271032635,-355.59532847,7.549e-05,2]
[344065901,1733271032645,-150.0,7.551e-05,2]
[344065902,1733271032654,-150.0,7.552e-05,2]
[344065903,1733271032664,-150.0,7.552e-05,2]
[344065904,1733271032673,-150.0,7.554e-05,2]
[344065905,1733271032683,-150.0,7.554e-05,2]
[344065906,1733271032692,-150.0,7.556e-05,2]
[344065907,1733271032701,-150.0,7.561e-05,2]
[344065908,1733271032710,-150.0,7.562e-05,2]
[344065909,1733271032719,-150.0,7.562e-05,2]
[344065910,1733271032728,-150.0,7.566e-05,2]
[344065911,1733271032737,-326.92,7.571e-05,2]
[344065912,1733271032746,-656.0,7.571e-05,2]
[344065913,1733271032756,-2500.0,7.571e-05,2]
[344065914,1733271032765,-150.0,7.574e-05,2]
[344065915,1733271032774,-150.0,7.583e-05,2]
[344065916,1733271032783,-25000.0,7.59e-05,2]
[344065917,1733271032793,-1903.962,7.591e-05,2]
[344065918,1733271032802,-180.13,7.591e-05,2]
[344065919,1733271032811,-150.0,7.592e-05,2]
[344065920,1733271032820,-1500.0,7.594e-05,2]
[344065921,1733271032830,-150.0,7.594e-05,2]
[344065922,1733271032839,-1674.0,7.594e-05,2]
[344065923,1733271032850,-150.0,7.599e-05,2]
[344065924,1733271032860,-1000.0,7.6e-05,2]
[344065925,1733271032870,-1800.0,7.6e-05,2]
[344065926,1733271032879,-250.72427336,7.607e-05,2]
[344065927,1733271032888,-150.0,7.608e-05,2]
[344065928,1733271032898,-150.0,7.611e-05,2]
[344065929,1733271032907,-150.0,7.613e-05,2]
[344065930,1733271032916,-150.0,7.624e-05,2]
[344065931,1733271032925,-150.0,7.629e-05,2]
[344065932,1733271032935,-150.0,7.635e-05,2]
[344065933,1733271032944,-150.0,7.641e-05,2]
[344065934,1733271032953,-454.0,7.644e-05,2]
[344065935,1733271032962,-797.0,7.644e-05,2]
[344065936,1733271032971,-150.0,7.649e-05,2]
[344065937,1733271032979,-150.0,7.65e-05,2]
[344065938,1733271032988,-150.0,7.656e-05,2]
[344065939,1733271032997,-150.0,7.667e-05,2]
[344065940,1733271033007,-150.0,7.669e-05,2]
[344065941,1733271033016,-150.0,7.669e-05,2]
[344065942,1733271033025,-150.0,7.669e-05,2]
[344065943,1733271033035,-150.0,7.669e-05,2]
[344065944,1733271033045,-150.0,7.669e-05,2]
[344065945,1733271033055,-150.0,7.669e-05,2]
[344065946,1733271033065,-150.0,7.669e-05,2]
[344065947,1733271033074,-150.0,7.669e-05,2]
[344065948,1733271033084,-150.0,7.669e-05,2]
[344065949,1733271033093,-150.0,7.669e-05,2]
[344065950,1733271033106,-150.0,7.669e-05,2]
[344065951,1733271033116,-150.0,7.669e-05,2]
[344065952,1733271033127,-1000.0,7.67e-05,2]
[344065953,1733271033137,-1202.36,7.67e-05,2]
[344065954,1733271033147,-29464.32145206,7.67e-05,2]
[344065955,1733271033158,-150.0,7.67e-05,2]
[344065956,1733271033170,-530.96975415,7.67e-05,2]
[344065957,1733271033181,-500.0,7.67e-05,2]
[344065958,1733271033191,-500.0,7.671e-05,2]
[344065959,1733271033201,-500.0,7.671e-05,2]
[344065960,1733271033211,-500.0,7.671e-05,2]
[344065961,1733271033223,-500.0,7.671e-05,2]
[344065962,1733271033233,-500.0,7.671e-05,2]
[344065963,1733271033243,-500.0,7.671e-05,2]
[344065964,1733271033254,-500.0,7.671e-05,2]
[344065965,1733271033264,-500.0,7.671e-05,2]
[344065966,1733271033275,-500.0,7.671e-05,2]
[344065967,1733271033285,-500.0,7.671e-05,2]
[344065968,1733271033296,-500.0,7.671e-05,2]
[344065969,1733271033306,-383.45248007,7.671e-05,2]
[344065970,1733271033316,-500.0,7.671e-05,2]
[344065971,1733271033326,-500.0,7.671e-05,2]
[344065972,1733271033337,-500.0,7.671e-05,2]
[344065973,1733271033347,-500.0,7.671e-05,2]
[344065974,1733271033357,-500.0,7.671e-05,2]
[344065975,1733271033368,-500.0,7.671e-05,2]
[344065976,1733271033378,-500.0,7.671e-05,2]
[344065977,1733271033387,-500.0,7.671e-05,2]
[344065978,1733271033397,-500.0,7.671e-05,2]
[344065980,1733271033407,-564.19721319,7.671e-05,2]
[344065982,1733271033416,-500.0,7.671e-05,2]
[344065984,1733271033426,-500.0,7.671e-05,2]
[344065986,1733271033435,-500.0,7.671e-05,2]
[344065988,1733271033445,-500.0,7.671e-05,2]
[344065990,1733271033454,-500.0,7.671e-05,2]
[344065992,1733271033464,-13288.82,7.671e-05,2]
[344065994,1733271033473,-500.0,7.671e-05,2]
[344065996,1733271033484,-500.0,7.671e-05,2]
[344065998,1733271033493,-500.0,7.671e-05,2]
[344066000,1733271033503,-500.0,7.671e-05,2]
[344066002,1733271033513,-500.0,7.671e-05,2]
[344066005,1733271033523,-281.23754935,7.671e-05,2]
[344066008,1733271033534,-500.0,7.671e-05,2]
[344066011,1733271033556,-500.0,7.671e-05,2]
[344066014,1733271033567,-500.0,7.671e-05,2]
[344066017,1733271033577,-500.0,7.671e-05,2]
[344066020,1733271033589,-516.2892403,7.671e-05,2]
[344066023,1733271033601,-744.35,7.671e-05,2]
[344066026,1733271033611,-1228.5,7.671e-05,2]
[344066029,1733271033620,-500.0,7.671e-05,2]
[344066032,1733271033629,-500.0,7.671e-05,2]
[344066035,1733271033639,-500.0,7.671e-05,2]
[344066038,1733271033648,-1005.91,7.671e-05,2]
[344066040,1733271033657,-411.19290021,7.671e-05,2]
[344066042,1733271033666,-500.0,7.671e-05,2]
[344066044,1733271033675,-500.0,7.671e-05,2]
[344066046,1733271033684,-500.0,7.671e-05,2]
[344066048,1733271033694,-500.0,7.671e-05,2]
[344066050,1733271033703,-500.0,7.671e-05,2]
[344066052,1733271033712,-500.0,7.671e-05,2]
[344066054,1733271033721,-500.0,7.671e-05,2]
[344066056,1733271033731,-500.0,7.671e-05,2]
[344066057,1733271033740,-500.0,7.671e-05,2]
[344066060,1733271033750,-500.0,7.671e-05,2]
[344066062,1733271033760,-500.0,7.671e-05,2]
[344066064,1733271033769,-500.0,7.671e-05,2]
[344066065,1733271033778,-343.78740776,7.671e-05,2]
[344066067,1733271033788,-500.0,7.671e-05,2]
[344066069,1733271033797,-1427.64,7.671e-05,2]
[344066072,1733271033807,-500.0,7.671e-05,2]
[344066074,1733271033817,-500.0,7.671e-05,2]
[344066075,1733271033826,-500.0,7.671e-05,2]
[344066076,1733271033835,-500.0,7.671e-05,2]
[344066077,1733271033844,-839.42,7.671e-05,2]
[344066078,1733271033855,-945.55,7.671e-05,2]
[344066079,1733271033865,-945.55,7.671e-05,2]
[344066080,1733271033874,-945.55,7.671e-05,2]
[344066081,1733271033884,-945.55,7.671e-05,2]
[344066082,1733271033893,-945.55,7.671e-05,2]
[344066083,1733271033902,-945.55,7.671e-05,2]
[344066084,1733271033912,-945.55,7.671e-05,2]
[344066085,1733271033921,-945.55,7.671e-05,2]
[344066086,1733271033930,-500.0,7.671e-05,2]
[344066087,1733271033940,-500.0,7.671e-05,2]
[344066088,1733271033949,-500.0,7.671e-05,2]
[344066089,1733271033959,-723.08,7.671e-05,2]
[344066090,1733271033968,-500.0,7.671e-05,2]
[344066091,1733271033978,-534.59508702,7.671e-05,2]
[344066092,1733271033988,-335.25576062,7.671e-05,2]
[344066093,1733271033999,-500.0,7.671e-05,2]
[344066094,1733271034009,-292.62510457,7.671e-05,2]
[344066095,1733271034020,-500.0,7.671e-05,2]
[344066096,1733271034030,-500.0,7.671e-05,2]
[344066097,1733271034040,-500.0,7.671e-05,2]
[344066098,1733271034051,-500.0,7.671e-05,2]
[344066099,1733271034061,-500.0,7.671e-05,2]
[344066100,1733271034071,-500.0,7.671e-05,2]
[344066101,1733271034081,-500.0,7.671e-05,2]
[344066102,1733271034092,-500.0,7.671e-05,2]
[344066103,1733271034104,-500.0,7.671e-05,2]
[344066104,1733271034114,-500.0,7.671e-05,2]
[344066105,1733271034124,-500.0,7.671e-05,2]
[344066106,1733271034134,-507.54138833,7.671e-05,2]
[344066107,1733271034143,-500.0,7.671e-05,2]
[344066108,1733271034153,-914.7,7.671e-05,2]
[344066109,1733271034162,-701.08,7.671e-05,2]
[344066110,1733271034172,-1379.23,7.671e-05,2]
[344066111,1733271034186,-701.08,7.671e-05,2]
[344066112,1733271034195,-701.08,7.671e-05,2]
[344066113,1733271034205,-701.08,7.671e-05,2]
[344066114,1733271034216,-701.08,7.671e-05,2]
[344066115,1733271034226,-701.08,7.671e-05,2]
[344066116,1733271034235,-701.08,7.671e-05,2]
[344066117,1733271034245,-500.0,7.671e-05,2]
[344066118,1733271034257,-701.08,7.671e-05,2]
[344066119,1733271034267,-500.0,7.671e-05,2]
[344066120,1733271034277,-500.0,7.671e-05,2]
[344066121,1733271034287,-500.0,7.671e-05,2]
[344066122,1733271034298,-500.0,7.671e-05,2]
[344066123,1733271034309,-500.0,7.671e-05,2]
[344066124,1733271034320,-500.0,7.671e-05,2]
[344066125,1733271034330,-500.0,7.671e-05,2]
[344066126,1733271034341,-500.0,7.671e-05,2]
[344066127,1733271034353,-500.0,7.671e-05,2]
[344066128,1733271034365,-500.0,7.671e-05,2]
[344066129,1733271034376,-1093.92,7.671e-05,2]
[344066130,1733271034386,-990.09,7.671e-05,2]
[344066131,1733271034396,-500.0,7.671e-05,2]
[344066132,1733271034407,-990.09,7.671e-05,2]
[344066133,1733271034417,-500.0,7.671e-05,2]
[344066134,1733271034427,-990.09,7.671e-05,2]
[344066135,1733271034437,-500.0,7.671e-05,2]
[344066136,1733271034447,-990.09,7.671e-05,2]
[344066137,1733271034457,-500.0,7.671e-05,2]
[344066138,1733271034467,-990.09,7.671e-05,2]
[344066139,1733271034477,-826.36,7.671e-05,2]
[344066140,1733271034487,-500.0,7.671e-05,2]
[344066141,1733271034497,-342.882087,7.671e-05,2]
[344066142,1733271035814,-647.207913,7.671e-05,2]
[344066143,1733271035824,-500.0,7.671e-05,2]
[344066144,1733271035834,-990.09,7.671e-05,2]
[344066145,1733271035844,-500.0,7.671e-05,2]
[344066146,1733271035861,-990.09,7.671e-05,2]
[344066147,1733271035870,-500.0,7.671e-05,2]
[344066148,1733271035880,-500.0,7.671e-05,2]
[344066149,1733271035889,-500.0,7.671e-05,2]
[344066150,1733271035899,-500.0,7.671e-05,2]
[344066151,1733271035907,-31.73021041,7.671e-05,2]
[344066152,1733271035926,-454.92529219,7.671e-05,2]
[344066153,1733271035968,-13.3444974,7.671e-05,2]
[344066154,1733271035977,-500.0,7.671e-05,2]
[344066155,1733271035986,-170.38526397,7.671e-05,2]
[344066156,1733271036918,-329.61473603,7.671e-05,2]
[344066157,1733271036927,-500.0,7.671e-05,2]
[344066158,1733271036937,-500.0,7.671e-05,2]
[344066159,1733271036949,-500.0,7.671e-05,2]
[344066160,1733271036960,-500.0,7.671e-05,2]
[344066161,1733271036970,-500.0,7.671e-05,2]
[344066162,1733271036979,-1287.71,7.671e-05,2]
[344066163,1733271036989,-500.0,7.671e-05,2]
[344066164,1733271036998,-1287.71,7.671e-05,2]
[344066165,1733271037008,-500.0,7.671e-05,2]
[344066166,1733271037018,-1631.26,7.671e-05,2]
[344066167,1733271037028,-500.0,7.671e-05,2]
[344066168,1733271037037,-1631.26,7.671e-05,2]
[344066169,1733271037047,-1287.71,7.671e-05,2]
[344066170,1733271037057,-500.0,7.671e-05,2]
[344066171,1733271037067,-1631.26,7.671e-05,2]
[344066172,1733271037077,-256.4245606,7.671e-05,2]
[344066173,1733271037087,-1287.71,7.671e-05,2]
[344066174,1733271037096,-1631.26,7.671e-05,2]
[344066175,1733271037105,-1287.71,7.671e-05,2]
[344066176,1733271037115,-1631.26,7.671e-05,2]
[344066177,1733271037125,-1287.71,7.671e-05,2]
[344066178,1733271037135,-1631.26,7.671e-05,2]
[344066179,1733271037144,-1287.71,7.671e-05,2]
[344066180,1733271037154,-1631.26,7.671e-05,2]
[344066181,1733271037164,-1287.71,7.671e-05,2]
[344066182,1733271037179,-1631.26,7.671e-05,2]
[344066183,1733271037188,-1115.47,7.671e-05,2]
[344066184,1733271037198,-1115.47,7.671e-05,2]
[344066185,1733271037207,-1115.47,7.671e-05,2]
[344066186,1733271037218,-500.0,7.671e-05,2]
[344066187,1733271037227,-1115.47,7.671e-05,2]
[344066188,1733271037237,-1115.47,7.671e-05,2]
[344066189,1733271037247,-1115.47,7.671e-05,2]
[344066190,1733271037262,-1115.47,7.671e-05,2]
[344066191,1733271037271,-500.0,7.671e-05,2]
[344066192,1733271037281,-1115.47,7.671e-05,2]
[344066193,1733271037290,-500.0,7.671e-05,2]
[344066194,1733271037299,-500.0,7.671e-05,2]
[344066195,1733271037310,-1446.07,7.671e-05,2]
[344066196,1733271037320,-1446.07,7.671e-05,2]
[344066197,1733271037329,-1446.07,7.671e-05,2]
[344066198,1733271037339,-1446.07,7.671e-05,2]
[344066199,1733271037349,-1446.07,7.671e-05,2]
[344066200,1733271037358,-1446.07,7.671e-05,2]
[344066201,1733271037368,-1446.07,7.671e-05,2]
[344066202,1733271037377,-1446.07,7.671e-05,2]
[344066203,1733271037387,-637.31,7.671e-05,2]
[344066204,1733271037396,-512.58058444,7.671e-05,2]
[344066205,1733271037406,-637.31,7.671e-05,2]
[344066206,1733271037416,-637.31,7.671e-05,2]
[344066207,1733271037425,-637.31,7.671e-05,2]
[344066208,1733271037434,-637.31,7.671e-05,2]
[344066210,1733271037444,-637.31,7.671e-05,2]
[344066211,1733271037453,-637.31,7.671e-05,2]
[344066212,1733271037463,-545.66,7.671e-05,2]
[344066213,1733271037472,-637.31,7.671e-05,2]
[344066214,1733271037481,-545.66,7.671e-05,2]
[344066216,1733271037490,-770.36,7.671e-05,2]
[344066217,1733271037500,-545.66,7.671e-05,2]
[344066218,1733271037510,-545.66,7.671e-05,2]
[344066220,1733271037519,-500.0,7.671e-05,2]
[344066221,1733271037529,-545.66,7.671e-05,2]
[344066222,1733271037538,-545.66,7.671e-05,2]
[344066223,1733271037547,-545.66,7.671e-05,2]
[344066224,1733271037556,-545.66,7.671e-05,2]
[344066225,1733271037565,-509.69980717,7.671e-05,2]
[344066226,1733271037574,-500.0,7.671e-05,2]
[344066227,1733271037584,-500.0,7.671e-05,2]
[344066228,1733271037593,-500.0,7.671e-05,2]
[344066229,1733271037602,-500.0,7.671e-05,2]
[344066230,1733271037612,-500.0,7.671e-05,2]
[344066231,1733271037621,-500.0,7.671e-05,2]
[344066232,1733271037631,-500.0,7.671e-05,2]
[344066233,1733271037640,-500.0,7.671e-05,2]
[344066234,1733271037649,-500.0,7.671e-05,2]
[344066235,1733271037665,-500.0,7.671e-05,2]
[344066236,1733271037675,-647.62010761,7.671e-05,2]
[344066237,1733271037684,-1190.18,7.671e-05,2]
[344066238,1733271037693,-500.0,7.671e-05,2]
[344066239,1733271037703,-1190.18,7.671e-05,2]
[344066240,1733271037712,-500.0,7.671e-05,2]
[344066241,1733271037721,-500.0,7.671e-05,2]
[344066242,1733271037731,-1190.18,7.671e-05,2]
[344066243,1733271037740,-500.0,7.671e-05,2]
[344066244,1733271037749,-1190.18,7.671e-05,2]
[344066245,1733271037759,-500.0,7.671e-05,2]
[344066246,1733271037768,-1190.18,7.671e-05,2]
[344066247,1733271037777,-1257.53,7.671e-05,2]
[344066248,1733271037787,-1190.18,7.671e-05,2]
[344066249,1733271037796,-1190.18,7.671e-05,2]
[344066250,1733271037805,-1190.18,7.671e-05,2]
[344066251,1733271037814,-500.0,7.671e-05,2]
[344066252,1733271037823,-617.99736581,7.671e-05,2]
[344066253,1733271037833,-411.4144964,7.671e-05,2]
[344066254,1733271037842,-1323.5,7.671e-05,2]
[344066255,1733271037852,-1323.5,7.671e-05,2]
[344066256,1733271037861,-1323.5,7.671e-05,2]
[344066257,1733271037870,-1323.5,7.671e-05,2]
[344066258,1733271037881,-1323.5,7.671e-05,2]
[344066259,1733271037890,-1323.5,7.671e-05,2]
[344066260,1733271037900,-1323.5,7.671e-05,2]
[344066261,1733271037910,-1323.5,7.671e-05,2]
[344066262,1733271037919,-500.0,7.671e-05,2]
[344066263,1733271037928,-586.83,7.671e-05,2]
[344066264,1733271037938,-586.83,7.671e-05,2]
[344066266,1733271037947,-586.83,7.671e-05,2]
[344066268,1733271037956,-586.83,7.671e-05,2]
[344066270,1733271037965,-586.83,7.671e-05,2]
[344066272,1733271037974,-500.0,7.671e-05,2]
[344066274,1733271037984,-500.0,7.671e-05,2]
[344066276,1733271037993,-586.83,7.671e-05,2]
[344066278,1733271038002,-500.0,7.671e-05,2]
[344066280,1733271038012,-500.0,7.671e-05,2]
[344066282,1733271038021,-586.83,7.671e-05,2]
[344066284,1733271038030,-500.0,7.671e-05,2]
[344066286,1733271038040,-586.83,7.671e-05,2]
[344066288,1733271038049,-500.0,7.671e-05,2]
[344066290,1733271038059,-500.0,7.671e-05,2]
[344066292,1733271038068,-500.0,7.671e-05,2]
[344066294,1733271038077,-1757.78,7.671e-05,2]
[344066296,1733271038087,-500.0,7.671e-05,2]
[344066298,1733271038096,-500.0,7.671e-05,2]
[344066300,1733271038115,-500.0,7.671e-05,2]
[344066302,1733271038126,-500.0,7.671e-05,2]
[344066304,1733271038135,-500.0,7.671e-05,2]
[344066306,1733271038144,-500.0,7.671e-05,2]
[344066308,1733271038154,-500.0,7.671e-05,2]
[344066310,1733271038167,-500.0,7.671e-05,2]
[344066312,1733271038177,-500.0,7.671e-05,2]
[344066314,1733271038191,-500.0,7.671e-05,2]
[344066316,1733271038203,-500.0,7.671e-05,2]
[344066318,1733271038213,-500.0,7.671e-05,2]
[344066320,1733271038222,-500.0,7.671e-05,2]
[344066322,1733271038232,-500.0,7.671e-05,2]
[344066324,1733271038242,-500.0,7.671e-05,2]
[344066326,1733271038251,-500.0,7.671e-05,2]
[344066366,1733271038610,-500.0,7.671e-05,2]
[344066368,1733271038621,-500.0,7.671e-05,2]
[344066370,1733271038631,-500.0,7.671e-05,2]
[344066372,1733271038641,-500.0,7.671e-05,2]
[344066374,1733271038650,-500.0,7.671e-05,2]
[344066376,1733271038659,-500.0,7.671e-05,2]
[344066378,1733271038668,-500.0,7.671e-05,2]
[344066380,1733271038677,-500.0,7.671e-05,2]
[344066382,1733271038686,-500.0,7.671e-05,2]
[344066384,1733271038697,-500.0,7.671e-05,2]
[344066386,1733271038707,-500.0,7.671e-05,2]
[344066388,1733271038716,-500.0,7.671e-05,2]
[344066390,1733271038725,-1230.01,7.671e-05,2]
[344066392,1733271038734,-1230.01,7.671e-05,2]
[344066394,1733271038743,-1230.01,7.671e-05,2]
[344066396,1733271038752,-1230.01,7.671e-05,2]
[344066398,1733271038761,-1230.01,7.671e-05,2]
[344066400,1733271038770,-1230.01,7.671e-05,2]
[344066402,1733271038780,-1230.01,7.671e-05,2]
[344066404,1733271038789,-1230.01,7.671e-05,2]
[344066406,1733271038798,-500.0,7.671e-05,2]
[344066408,1733271038808,-1079.66,7.671e-05,2]
[344066410,1733271038817,-1079.66,7.671e-05,2]
[344066412,1733271038826,-1079.66,7.671e-05,2]
[344066414,1733271038835,-1079.66,7.671e-05,2]
[344066416,1733271038845,-1315.75,7.671e-05,2]
[344066417,1733271038855,-1079.66,7.671e-05,2]
[344066418,1733271038864,-1079.66,7.671e-05,2]
[344066419,1733271038874,-1079.66,7.671e-05,2]
[344066420,1733271038883,-653.72,7.671e-05,2]
[344066421,1733271038893,-653.72,7.671e-05,2]
[344066422,1733271038902,-1079.66,7.671e-05,2]
[344066423,1733271038911,-653.72,7.671e-05,2]
[344066424,1733271038920,-653.72,7.671e-05,2]
[344066425,1733271038929,-1055.03,7.671e-05,2]
[344066426,1733271038938,-653.72,7.671e-05,2]
[344066427,1733271038947,-653.72,7.671e-05,2]
[344066428,1733271038958,-1055.03,7.671e-05,2]
[344066429,1733271038967,-653.72,7.671e-05,2]
[344066430,1733271038976,-1055.03,7.671e-05,2]
[344066431,1733271038984,-653.72,7.671e-05,2]
[344066432,1733271038994,-1055.03,7.671e-05,2]
[344066433,1733271039003,-1055.03,7.671e-05,2]
[344066435,1733271039012,-1055.03,7.671e-05,2]
[344066437,1733271039021,-1055.03,7.671e-05,2]
[344066439,1733271039031,-1055.03,7.671e-05,2]
[344066441,1733271039040,-500.0,7.671e-05,2]
[344066443,1733271039050,-1283.9,7.671e-05,2]
[344066445,1733271039059,-518.26893145,7.671e-05,2]
[344066447,1733271039068,-905.07,7.671e-05,2]
[344066449,1733271039077,-500.0,7.671e-05,2]
[344066451,1733271039087,-905.07,7.671e-05,2]
[344066453,1733271039096,-905.07,7.671e-05,2]
[344066455,1733271039119,-905.07,7.671e-05,2]
[344066457,1733271039128,-905.07,7.671e-05,2]
[344066459,1733271039137,-905.07,7.671e-05,2]
[344066461,1733271039147,-905.07,7.671e-05,2]
[344066463,1733271039156,-905.07,7.671e-05,2]
[344066465,1733271039166,-500.0,7.671e-05,2]
[344066467,1733271039177,-500.0,7.671e-05,2]
[344066469,1733271039188,-500.0,7.671e-05,2]
[344066471,1733271039197,-500.0,7.671e-05,2]
[344066473,1733271039206,-500.0,7.671e-05,2]
[344066475,1733271039215,-500.0,7.671e-05,2]
[344066477,1733271039225,-500.0,7.671e-05,2]
[344066479,1733271039234,-500.0,7.671e-05,2]
[344066481,1733271039244,-252.33555337,7.671e-05,2]
[344066482,1733271039255,-500.0,7.671e-05,2]
[344066483,1733271039266,-500.0,7.671e-05,2]
[344066484,1733271039276,-1259.95,7.671e-05,2]
[344066485,1733271039286,-1259.95,7.671e-05,2]
[344066486,1733271039296,-1259.95,7.671e-05,2]
[344066487,1733271039306,-1259.95,7.671e-05,2]
[344066488,1733271039316,-1259.95,7.671e-05,2]
[344066489,1733271039325,-1259.95,7.671e-05,2]
[344066490,1733271039335,-1259.95,7.671e-05,2]
[344066491,1733271039344,-1259.95,7.671e-05,2]
[344066492,1733271039358,-648.81,7.671e-05,2]
[344066493,1733271039367,-500.0,7.671e-05,2]
[344066494,1733271039377,-648.81,7.671e-05,2]
[344066495,1733271039386,-648.81,7.671e-05,2]
[344066496,1733271039395,-648.81,7.671e-05,2]
[344066497,1733271039405,-500.0,7.671e-05,2]
[344066498,1733271039414,-648.81,7.671e-05,2]